fUSD/lending_fUSD_20260205
["ID","MTS","AMOUNT","RATE_DAILY","PERIOD"]
[404559599,1770291044453,-154.5345725,0.0001799,2]
[404559600,1770291044463,-500.0,0.00017996,2]
[404559601,1770291044472,-500.0,0.00017996,2]
[404559602,1770291044486,-500.0,0.00017996,2]
[404559603,1770291044496,-500.0,0.00017996,2]
[404559604,1770291044506,-500.0,0.00017996,2]
[404559605,1770291044516,-448.31,0.00017996,2]
[404559606,1770291044526,-300.0,0.00017999,2]
[404559607,1770291044535,-300.0,0.00017999,2]
[404559608,1770291044545,-300.0,0.00017999,2]
[404559609,1770291044555,-300.0,0.00017999,2]
[404559610,1770291044564,-300.0,0.00017999,2]
[404559611,1770291044574,-300.0,0.00017999,2]
[404559612,1770291044584,-150.0,0.00017999,2]
[404559613,1770291044593,-300.0,0.00017999,2]
[404559614,1770291044603,-666.0,0.00017999,2]
[404559615,1770291044613,-3688534.87714659,0.00018,2]
[404559616,1770291045184,-1007.35736544,0.00018,2]
[404559617,1770291045196,-765.93076401,0.00018,2]
[404559618,1770291045242,-47989.15478943,0.00018,2]
[404559660,1770291045994,-900.0,0.00012639,2]
[404559662,1770291046004,-732.18335078,0.00012639,2]
[404559664,1770291046015,-23998.74988833,0.00012639,2]
[404559666,1770291046025,-17864.61856264,0.00014392,2]
[404559668,1770291046034,-8688.30261256,0.00018,2]
[404559670,1770291046046,-606.42,0.00018,2]
[404559672,1770291046057,-348.7328232,0.00018,2]
[404559675,1770291046072,-7587.33521644,0.00018,2]
[404559677,1770291046083,-14000.0,0.00018,2]
[404559716,1770291046464,-555.870015,0.00018,2]
[404559727,1770291046588,-507.75245451,0.00018,2]
[404559729,1770291046599,-474.209881,0.00018,2]
[404559731,1770291046610,-1148.2800006,0.00018,2]
[404559733,1770291046622,-703.5,0.00018,2]
[404559739,1770291046687,-4222.6207862,0.00018,2]
[404560244,1770292232401,-1200.0,9.521e-05,2]
[404560245,1770292232412,-9392.29,9.522e-05,2]
[404560246,1770292232421,-500.0,9.656e-05,2]
[404560247,1770292232430,-463.8680531,9.656e-05,2]
[404560248,1770292232441,-500.0,9.656e-05,2]
[404560249,1770292232451,-500.0,9.656e-05,2]
[404560250,1770292232461,-500.0,9.656e-05,2]
[404560252,1770292232471,-500.0,9.656e-05,2]
[404560254,1770292232480,-500.0,9.656e-05,2]
[404560256,1770292232489,-500.0,9.656e-05,2]
[404560258,1770292232498,-500.0,9.656e-05,2]
[404560260,1770292232507,-500.0,9.656e-05,2]
[404560262,1770292232517,-500.0,9.656e-05,2]
[404560264,1770292232526,-500.0,9.656e-05,2]
[404560266,1770292232535,-500.0,9.656e-05,2]
[404560268,1770292232544,-500.0,9.656e-05,2]
[404560270,1770292232553,-500.0,9.656e-05,2]
[404560272,1770292232562,-500.0,9.656e-05,2]
[404560274,1770292232571,-500.0,9.656e-05,2]
[404560276,1770292232581,-500.0,9.656e-05,2]
[404560278,1770292232590,-500.0,9.656e-05,2]
[404560280,1770292232599,-377.82760236,9.656e-05,2]
[404560282,1770292232608,-500.0,9.656e-05,2]
[404560284,1770292232617,-500.0,9.656e-05,2]
[404560286,1770292232626,-500.0,9.656e-05,2]
[404560288,1770292232635,-500.0,9.656e-05,2]
[404560290,1770292232645,-500.0,9.656e-05,2]
[404560292,1770292232654,-500.0,9.656e-05,2]
[404560294,1770292232664,-500.0,9.656e-05,2]
[404560296,1770292232674,-500.0,9.656e-05,2]
[404560298,1770292232684,-500.0,9.656e-05,2]
[404560300,1770292232695,-500.0,9.656e-05,2]
[404560302,1770292232704,-500.0,9.656e-05,2]
[404560304,1770292232714,-500.0,9.656e-05,2]
[404560306,1770292232723,-500.0,9.656e-05,2]
[404560308,1770292232733,-500.0,9.656e-05,2]
[404560310,1770292232742,-500.0,9.656e-05,2]
[404560312,1770292232751,-319.75862249,9.656e-05,2]
[404560314,1770292232761,-500.0,9.656e-05,2]
[404560316,1770292232771,-500.0,9.656e-05,2]
[404560318,1770292232781,-150.0,9.656e-05,2]
[404560320,1770292232791,-4123.3752,9.657e-05,2]
[404560322,1770292232802,-276.0926,9.657e-05,2]
[404560324,1770292232812,-21340.95906499,9.657e-05,2]
[404560326,1770292232824,-13429.19280981,9.657e-05,2]
[404560332,1770292232866,-286.21453433,9.657e-05,2]
[404560334,1770292232877,-311.58575,9.657e-05,2]
[404560358,1770292232888,-353.435,9.657e-05,2]
[404560359,1770292233125,-1403.84725605,9.657e-05,2]
[404560360,1770292233259,-353.5,9.657e-05,2]
[404560369,1770292238308,-2771.0020144,9.657e-05,2]
[404560370,1770292238410,-950.98,9.657e-05,2]
[404560371,1770292238466,-3458799.28357042,9.657e-05,2]
[404560372,1770292238478,-2729.2947,9.657e-05,2]
[404560373,1770292238489,-2500.0,9.657e-05,2]
[404560374,1770292238500,-364.09712836,9.657e-05,2]
[404560375,1770292238510,-1440.53628294,9.657e-05,2]
[404560376,1770292238520,-3595.19798886,9.657e-05,2]
[404560377,1770292238530,-188.17333529,9.657e-05,2]
[404560378,1770292238539,-250.0,9.659e-05,2]
[404560379,1770292238549,-2335.235,9.661e-05,2]
[404560380,1770292238560,-187.98,9.661e-05,2]
[404560381,1770292238570,-500.0,9.661e-05,2]
[404560383,1770292238581,-206.88,9.677e-05,2]
[404560385,1770292238591,-250.0,9.702e-05,2]
[404560386,1770292238601,-150.0,9.729e-05,2]
[404560387,1770292238612,-150.0,9.729e-05,2]
[404560388,1770292238622,-251.3953049,9.784e-05,2]
[404560389,1770292238632,-6890.88,9.833e-05,2]
[404560390,1770292238642,-999.99,9.857e-05,2]
[404560391,1770292238653,-499.99,9.857e-05,2]
[404560392,1770292238663,-9999.99,9.857e-05,2]
[404560393,1770292238673,-150.99,9.857e-05,2]
[404560394,1770292238683,-3307.45,9.857e-05,2]
[404560395,1770292238693,-1032.6,9.857e-05,2]
[404560396,1770292238703,-4999.99,9.857e-05,2]
[404560397,1770292238714,-150.99,9.857e-05,2]
[404560398,1770292238723,-9999.99,9.857e-05,2]
[404560399,1770292238734,-299.99,9.857e-05,2]
[404560400,1770292238743,-203.3499,9.858e-05,2]
[404560401,1770292238755,-558.7627,9.858e-05,2]
[404560402,1770292238765,-207.0,9.895e-05,2]
[404560403,1770292238776,-655.3066338,9.923e-05,2]
[404560404,1770292238787,-500.0,9.935e-05,2]
[404560405,1770292238808,-2762.86389198,9.953e-05,2]
[404560406,1770292238830,-200.0,0.0001,2]
[404560407,1770292238845,-500.0,0.0001,2]
[404560408,1770292238855,-500.0,0.0001,2]
[404560409,1770292238865,-500.0,0.0001,2]
[404560410,1770292238875,-500.0,0.0001,2]
[404560411,1770292238891,-500.0,0.0001,2]
[404560412,1770292238913,-500.0,0.0001,2]
[404560413,1770292238930,-500.0,0.0001,2]
[404560414,1770292238940,-500.0,0.0001,2]
[404560415,1770292238951,-500.0,0.0001,2]
[404560416,1770292238961,-500.0,0.0001,2]
[404560417,1770292238971,-500.0,0.0001,2]
[404560418,1770292238981,-500.0,0.0001,2]
[404560419,1770292238991,-151.0,0.0001,2]
[404560421,1770292239001,-151.0,0.0001,2]
[404560424,1770292239011,-151.0,0.0001,2]
[404560426,1770292239023,-151.0,0.0001,2]
[404560428,1770292239033,-151.0,0.0001,2]
[404560430,1770292239043,-151.0,0.0001,2]
[404560432,1770292239054,-151.0,0.0001,2]
[404560434,1770292239063,-151.0,0.0001,2]
[404560436,1770292239073,-151.0,0.0001,2]
[404560438,1770292239083,-151.0,0.0001,2]
[404560440,1770292239092,-151.0,0.0001,2]
[404560442,1770292239102,-151.0,0.0001,2]
[404560444,1770292239111,-151.0,0.0001,2]
[404560446,1770292239121,-151.0,0.0001,2]
[404560448,1770292239130,-151.0,0.0001,2]
[404560450,1770292239140,-151.0,0.0001,2]
[404560452,1770292239149,-151.0,0.0001,2]
[404560454,1770292239159,-151.0,0.0001,2]
[404560456,1770292239169,-151.0,0.0001,2]
[404560458,1770292239178,-151.0,0.0001,2]
[404560460,1770292239188,-151.0,0.0001,2]
[404560463,1770292239198,-151.0,0.0001,2]
[404560465,1770292239207,-151.0,0.0001,2]
[404560467,1770292239217,-151.0,0.0001,2]
[404560469,1770292239227,-151.0,0.0001,2]
[404560471,1770292239237,-151.0,0.0001,2]
[404560473,1770292239247,-151.0,0.0001,2]
[404560475,1770292239257,-151.0,0.0001,2]
[404560477,1770292239268,-151.0,0.0001,2]
[404560479,1770292239277,-151.0,0.0001,2]
[404560481,1770292239287,-151.0,0.0001,2]
[404560483,1770292239296,-200.0,0.0001,2]
[404560485,1770292239306,-500.0,0.0001,2]
[404560487,1770292239316,-500.0,0.0001,2]
[404560489,1770292239327,-500.0,0.0001,2]
[404560491,1770292239337,-500.0,0.0001,2]
[404560494,1770292239347,-500.0,0.0001,2]
[404560496,1770292239356,-500.0,0.0001,2]
[404560498,1770292239366,-500.0,0.0001,2]
[404560500,1770292239376,-500.0,0.0001,2]
[404560502,1770292239386,-500.0,0.0001,2]
[404560504,1770292239399,-500.0,0.0001,2]
[404560506,1770292239408,-500.0,0.0001,2]
[404560508,1770292239418,-154.53457251,0.0001,2]
[404560510,1770292239429,-7108.66717666,0.00010089,2]
[404560512,1770292239439,-1000.0,0.00010108,2]
[404560514,1770292239449,-1032.6,0.00010131,2]
[404560516,1770292239459,-500.0,0.00010209,2]
[404560518,1770292239469,-1032.6,0.00010405,2]
[404560520,1770292239479,-1680.0,0.00010473,2]
[404560522,1770292239488,-500.0,0.00010483,2]
[404560524,1770292239498,-166.66,0.00010521,2]
[404560526,1770292239507,-200.0,0.00010548,2]
[404560528,1770292239517,-500.0,0.00010548,2]
[404560530,1770292239527,-200.0,0.00010548,2]
[404560532,1770292239537,-255.0,0.00010621,2]
[404560534,1770292239546,-250.0,0.00010622,2]
[404560536,1770292239556,-300.0,0.00010627,2]
[404560538,1770292239566,-543.70924244,0.00010627,2]
[404560540,1770292239576,-1032.6,0.00010679,2]
[404560543,1770292239586,-502.96360645,0.00010757,2]
[404560545,1770292239595,-1410.42,0.00010862,2]
[404560547,1770292239605,-23813.33,0.00010862,2]
[404560549,1770292239615,-166.66,0.00010869,2]
[404560551,1770292239625,-1410.42,0.00010882,2]
[404560553,1770292239635,-5421.14450727,0.000109,2]
[404560555,1770292239644,-5421.14450726,0.000109,2]
[404560557,1770292239653,-1410.42,0.00010902,2]
[404560559,1770292239664,-1410.42,0.00010922,2]
[404560561,1770292239673,-1410.42,0.00010942,2]
[404560563,1770292239682,-1032.6,0.00010953,2]
[404560565,1770292239692,-500.0,0.00010959,2]
[404560567,1770292239702,-270.21862608,0.00010959,2]
[404560569,1770292239712,-150.0,0.00010959,2]
[404560571,1770292239723,-150.0,0.00010959,2]
[404560573,1770292239732,-1410.42,0.00010962,2]
[404560575,1770292239742,-1410.42,0.00010982,2]
[404560577,1770292239752,-1410.42,0.00011002,2]
[404560579,1770292239761,-1410.42,0.00011022,2]
[404560582,1770292239771,-1410.42,0.00011042,2]
[404560584,1770292239781,-1410.42,0.00011062,2]
[404560586,1770292239791,-1410.42,0.00011082,2]
[404560588,1770292239800,-200.0,0.00011096,2]
[404560590,1770292239809,-500.0,0.00011096,2]
[404560592,1770292239819,-200.0,0.00011096,2]
[404560594,1770292239828,-16527.72442727,0.00011099,2]
[404560596,1770292239838,-16527.72442726,0.00011099,2]
[404560598,1770292239848,-23407.50559428,0.00011099,2]
[404560600,1770292239857,-23407.50559422,0.00011099,2]
[404560602,1770292239866,-1410.42,0.00011102,2]
[404560604,1770292239875,-1410.42,0.00011122,2]
[404560606,1770292239885,-1410.42,0.00011142,2]
[404560608,1770292239894,-1410.42,0.00011162,2]
[404560610,1770292239903,-1410.42,0.00011182,2]
[404560612,1770292239913,-1410.42,0.00011202,2]
[404560614,1770292239923,-166.66,0.00011216,2]
[404560616,1770292239932,-1410.42,0.00011222,2]
[404560618,1770292239942,-1032.6,0.00011227,2]
[404560620,1770292239952,-1410.42,0.00011242,2]
[404560622,1770292239962,-200.0,0.00011245,2]
[404560624,1770292239971,-269.92100004,0.00011245,2]
[404560626,1770292239981,-150.0,0.00011245,2]
[404560628,1770292239991,-500.0,0.00011245,2]
[404560630,1770292240001,-500.0,0.00011245,2]
[404560632,1770292240011,-151.68281621,0.00011245,2]
[404560634,1770292240021,-500.0,0.00011245,2]
[404560636,1770292240032,-174.11816518,0.00011245,2]
[404560639,1770292240041,-150.0,0.00011245,2]
[404560641,1770292240051,-386.88,0.00011256,2]
[404560643,1770292240060,-150.0,0.000113,2]
[404560645,1770292240070,-500.0,0.000113,2]
[404560647,1770292240079,-505.36603291,0.000113,2]
[404560649,1770292240088,-633.57498961,0.000113,2]
[404560662,1770292240281,-150.0,0.000113,2]
[404560664,1770292240292,-500.0,0.00011355,2]
[404560666,1770292240302,-150.0,0.00011355,2]
[404560668,1770292240312,-500.0,0.00011409,2]
[404560670,1770292240323,-150.0,0.00011409,2]
[404560672,1770292240332,-16527.72442726,0.00011411,2]
[404560675,1770292240345,-219.31,0.00011424,2]
[404560677,1770292240355,-163.85,0.00011424,2]
[404560679,1770292240365,-563.96761622,0.00011464,2]
[404560681,1770292240375,-266.00716112,0.00011464,2]
[404560683,1770292240385,-23407.50559422,0.0001149,2]
[404560685,1770292240396,-1032.6,0.00011501,2]
[404560686,1770292240408,-2351.0,0.00011521,2]
[404560689,1770292240421,-166.66,0.00011563,2]
[404560691,1770292240431,-2762.86389198,0.00011604,2]
[404560693,1770292240446,-200.0,0.00011644,2]
[404560695,1770292240455,-500.0,0.00011644,2]
[404560697,1770292240465,-200.0,0.00011644,2]
[404560699,1770292240476,-433.0,0.00011683,2]
[404560701,1770292240486,-1032.6,0.00011775,2]
[404560703,1770292240496,-166.66,0.00011911,2]
[404560705,1770292240505,-5421.14450726,0.00011941,2]
[404560707,1770292240515,-9943.41866852,0.00011964,2]
[404560709,1770292240526,-26240.83918648,0.00011964,2]
[404560711,1770292240536,-46291.95075099,0.00011964,2]
[404560713,1770292240546,-870.35325205,0.00012,2]
[404560716,1770292240557,-1000.0,0.00012029,2]
[404560717,1770292240567,-250.0,0.00012041,2]
[404560720,1770292240577,-1032.6,0.00012048,2]
[404560722,1770292240587,-500.0,0.00012192,2]
[404560724,1770292240596,-200.0,0.00012192,2]
[404560726,1770292240606,-200.0,0.00012192,2]
[404560728,1770292240616,-166.66,0.00012258,2]
[404560730,1770292240626,-1032.6,0.00012322,2]
[404560732,1770292240635,-16527.72442726,0.00012338,2]
[404560734,1770292240646,-23407.50559422,0.00012405,2]
[404560736,1770292240655,-152.0,0.0001257,3]
[404560738,1770292240666,-1032.6,0.00012596,2]
[404560740,1770292240676,-3292.0,0.00012673,2]
[404560742,1770292240686,-502.94499964,0.0001274,2]
[404560744,1770292240696,-200.0,0.0001274,2]
[404560746,1770292240705,-200.0,0.0001274,2]
[404560748,1770292240715,-736.0,0.00012852,2]
[404560750,1770292240725,-200.0,0.00012855,2]
[404560752,1770292240735,-1032.6,0.0001287,2]
[404560754,1770292240744,-1000.0,0.00013,2]
[404560756,1770292240754,-5421.14450726,0.00013133,2]
[404560758,1770292240764,-1032.6,0.00013144,2]
[404560761,1770292240774,-2762.86389198,0.00013255,2]
[404560763,1770292240784,-16527.72442726,0.00013265,2]
[404560765,1770292240794,-200.0,0.00013288,2]
[404560767,1770292240804,-200.0,0.00013288,2]
[404560769,1770292240814,-23407.50559422,0.00013321,2]
[404560771,1770292240823,-152.0,0.00013403,4]
[404560773,1770292240832,-1032.6,0.00013418,2]
[404560775,1770292240843,-1000.0,0.00013533,2]
[404560777,1770292240853,-1032.6,0.00013692,2]
[404560779,1770292240863,-500.0,0.00013698,2]
[404560781,1770292240873,-500.0,0.00013698,2]
[404560783,1770292240883,-257.1490003,0.00013698,2]
[404560785,1770292240892,-500.0,0.00013698,2]
[404560787,1770292240902,-500.0,0.00013698,2]
[404560789,1770292240911,-611.74702431,0.00013698,2]
[404560791,1770292240921,-438.26710356,0.00013698,2]
[404560793,1770292240931,-500.0,0.00013698,2]
[404560795,1770292240941,-500.0,0.00013698,2]
[404560797,1770292240951,-457.99797698,0.00013698,2]
[404560799,1770292240960,-502.58453595,0.00013698,2]
[404560801,1770292240970,-500.0,0.00013698,2]
[404560803,1770292240979,-500.0,0.00013698,2]
[404560805,1770292240989,-500.0,0.00013698,2]
[404560807,1770292240999,-500.0,0.00013698,2]
[404560809,1770292241009,-500.0,0.00013698,2]
[404560811,1770292241028,-500.0,0.00013698,2]
[404560813,1770292241041,-500.0,0.00013698,2]
[404560815,1770292241050,-500.0,0.00013698,2]
[404560818,1770292241064,-500.0,0.00013698,2]
[404560820,1770292241084,-500.0,0.00013698,2]
[404560822,1770292241104,-500.0,0.00013698,2]
[404560824,1770292241115,-500.0,0.00013698,2]
[404560826,1770292241130,-500.0,0.00013698,2]
[404560828,1770292241140,-500.0,0.00013698,2]
[404560830,1770292241150,-500.0,0.00013698,2]
[404560832,1770292241160,-351.5182,0.00013698,2]
[404560834,1770292241170,-364.09712835,0.00013729,2]
[404560836,1770292241180,-3595.19798886,0.00013729,2]
[404560838,1770292241190,-6890.88,0.00013766,2]
[404560840,1770292241204,-200.0,0.00013836,2]
[404560842,1770292241213,-200.0,0.00013836,2]
[404560844,1770292241224,-4609.0,0.0001394,2]
[404560846,1770292241233,-1032.6,0.00013966,2]
[404560848,1770292241243,-1000.0,0.00014,2]
[404560850,1770292241251,-1151.0,0.00014136,2]
[404560852,1770292241261,-160.0,0.00014146,2]
[404560854,1770292241271,-16527.72442726,0.00014192,2]
[404560856,1770292241281,-152.0,0.00014236,5]
[404560858,1770292241290,-23407.50559422,0.00014237,2]
[404560860,1770292241300,-1032.6,0.0001424,2]
[404560862,1770292241310,-951.124593,0.00014314,7]
[404560864,1770292241319,-5421.14450726,0.00014324,2]
[404560866,1770292241329,-200.0,0.00014384,2]
[404560868,1770292241338,-200.0,0.00014384,2]
[404560870,1770292241348,-1032.6,0.00014514,2]
[404560872,1770292241358,-500.0,0.000146,2]
[404560874,1770292241369,-173.07272258,0.000146,2]
[404560876,1770292241378,-500.0,0.000146,2]
[404560878,1770292241391,-500.0,0.000146,2]
[404560880,1770292241404,-500.0,0.000146,2]
[404560882,1770292241413,-500.0,0.000146,2]
[404560884,1770292241423,-500.0,0.000146,2]
[404560886,1770292241438,-500.0,0.000146,2]
[404560888,1770292241448,-500.0,0.000146,2]
[404560890,1770292241458,-500.0,0.000146,2]
[404560892,1770292241470,-500.0,0.000146,2]
[404560895,1770292241480,-500.0,0.000146,2]
[404560897,1770292241490,-500.0,0.000146,2]
[404560899,1770292241500,-500.0,0.000146,2]
[404560901,1770292241510,-500.0,0.000146,2]
[404560903,1770292241521,-500.0,0.000146,2]
[404560905,1770292241530,-500.0,0.000146,2]
[404560907,1770292241540,-386.88,0.00014704,2]
[404560909,1770292241548,-1032.6,0.00014788,2]
[404560911,1770292241559,-2762.86389198,0.00014906,2]
[404560913,1770292241570,-200.0,0.00014932,2]
[404560915,1770292241579,-200.0,0.00014932,2]
[404560917,1770292241589,-250.0,0.00015,2]
[404560919,1770292241598,-1000.0,0.00015,2]
[404560921,1770292241607,-152.62,0.00015,2]
[404560923,1770292241616,-219.31,0.00015003,2]
[404560925,1770292241631,-163.85,0.00015007,2]
[404560927,1770292241641,-1000.0,0.00015036,2]
[404560929,1770292241651,-1032.6,0.00015062,2]
[404560931,1770292241662,-152.0,0.00015069,6]
[404560933,1770292241671,-16527.72442726,0.00015119,2]
[404560935,1770292241680,-1000.0,0.00015148,2]
[404560937,1770292241689,-1000.0,0.00015148,2]
[404560939,1770292241699,-500.0,0.00015148,2]
[404560941,1770292241708,-347.37162909,0.00015148,2]
[404560943,1770292241717,-23407.50559422,0.00015153,2]
[404560945,1770292241727,-3201.0,0.00015334,2]
[404560947,1770292241736,-1032.6,0.00015336,2]
[404560949,1770292241746,-200.0,0.0001548,2]
[404560951,1770292241755,-200.0,0.0001548,2]
[404560953,1770292241764,-69249.98978375,0.00015514,2]
[404560955,1770292241774,-5421.14450726,0.00015516,2]
[404560957,1770292241783,-1032.6,0.0001561,2]
[404560959,1770292241793,-152.0173956,0.00015624,2]
[404560961,1770292241802,-1500.0,0.00015696,2]
[404560963,1770292241811,-1500.0,0.00015696,2]
[404560965,1770292241821,-1032.6,0.00015884,2]
[404560967,1770292241830,-152.0,0.00015902,7]
[404560969,1770292241840,-990.55073207,0.0001596,2]
[404560971,1770292241850,-1000.0,0.00016,2]
[404560973,1770292241859,-200.744485,0.00016,2]
[404560975,1770292241869,-93697.6986,0.00016014,2]
[404560977,1770292241878,-200.0,0.00016028,2]
[404560979,1770292241887,-200.0,0.00016028,2]
[404560981,1770292241896,-16527.72442726,0.00016046,2]
[404560983,1770292241905,-23407.50559422,0.00016068,2]
[404560985,1770292241914,-1032.61715052,0.00016158,2]
[404560987,1770292241924,-152.0173956,0.00016182,2]
[404560990,1770292241933,-1291.24412758,0.00016244,2]
[404560991,1770292241942,-1004.24108191,0.00016244,2]
[404560994,1770292241951,-500.0,0.00016437,2]
[404560996,1770292241960,-1000.0,0.0001654,2]
[404560998,1770292241970,-386.88,0.00016553,2]
[404560999,1770292241979,-2762.86389198,0.00016557,2]
[404561002,1770292241988,-200.0,0.00016576,2]
[404561003,1770292241998,-200.0,0.00016576,2]
[404561006,1770292242007,-5421.14450726,0.00016708,2]
[404561008,1770292242016,-165.83,0.00016712,2]
[404561010,1770292242026,-152.0,0.00016735,8]
[404561012,1770292242035,-152.0173956,0.0001674,2]
[404561014,1770292242045,-6611.09729915,0.000168,2]
[404561015,1770292242053,-219.31,0.00016817,2]
[404561017,1770292242063,-163.85,0.00016824,2]
[404561019,1770292242071,-500.0,0.00016875,2]
[404561021,1770292242081,-792.603827,0.00016917,7]
[404561023,1770292242090,-16527.72442726,0.00016973,2]
[404561026,1770292242100,-23407.50559422,0.00016984,2]
[404561028,1770292242109,-500.0,0.00016987,2]
[404561030,1770292242119,-1411.0,0.00016988,2]
[404561032,1770292242128,-3491.028,0.00016988,2]
[404561034,1770292242137,-616.445,0.00016988,2]
[404561036,1770292242146,-1335.0,0.00016988,2]
[404561038,1770292242155,-150.0,0.00016988,2]
[404561040,1770292242165,-1271.0,0.00016988,2]
[404561041,1770292242175,-917.0,0.00016988,2]
[404561043,1770292242184,-568.607,0.00016988,2]
[404561045,1770292242193,-3254.0,0.00016988,2]
[404561047,1770292242203,-6581.0,0.00016988,2]
[404561049,1770292242213,-1000.0,0.00017,2]
[404561052,1770292242222,-300.0,0.00017,2]
[404561054,1770292242231,-5000.0,0.00017099,2]
[404561056,1770292242241,-176.28122483,0.00017099,2]
[404561058,1770292242252,-200.0,0.00017099,2]
[404561060,1770292242262,-209.40437684,0.00017099,2]
[404561062,1770292242271,-250.0,0.00017099,2]
[404561064,1770292242280,-250.0,0.00017099,2]
[404561066,1770292242291,-322.6107,0.00017099,2]
[404561068,1770292242300,-250.0,0.00017099,2]
[404561070,1770292242309,-250.0,0.00017099,2]
[404561072,1770292242318,-250.0,0.00017099,2]
[404561074,1770292242328,-250.0,0.00017099,2]
[404561076,1770292242337,-250.0,0.00017099,2]
[404561078,1770292242347,-228.82569288,0.00017099,2]
[404561080,1770292242356,-250.0,0.00017099,2]
[404561082,1770292242366,-250.0,0.00017099,2]
[404561084,1770292242375,-250.0,0.00017099,2]
[404561086,1770292242384,-250.0,0.00017099,2]
[404561088,1770292242396,-174.61919141,0.00017099,2]
[404561090,1770292242406,-250.0,0.00017099,2]
[404561092,1770292242416,-250.0,0.00017099,2]
[404561094,1770292242426,-250.0,0.00017099,2]
[404561096,1770292242436,-250.0,0.00017099,2]
[404561098,1770292242445,-250.0,0.00017099,2]
[404561099,1770292242455,-250.0,0.00017099,2]
[404561100,1770292242466,-250.0,0.00017099,2]
[404561101,1770292242476,-2000.0,0.00017099,2]
[404561102,1770292242485,-2000.0,0.00017099,2]
[404561103,1770292242494,-2000.0,0.00017099,2]
[404561104,1770292242504,-2000.0,0.00017099,2]
[404561105,1770292242513,-2000.0,0.00017099,2]
[404561107,1770292242522,-500.0,0.00017099,2]
[404561109,1770292242535,-500.0,0.00017099,2]
[404561111,1770292242545,-2000.0,0.00017099,2]
[404561113,1770292242556,-500.0,0.00017099,2]
[404561115,1770292242567,-2000.0,0.00017099,2]
[404561117,1770292242578,-2000.0,0.00017099,2]
[404561119,1770292242589,-500.0,0.00017099,2]
[404561121,1770292242600,-2000.0,0.00017099,2]
[404561123,1770292242611,-500.0,0.00017099,2]
[404561125,1770292242621,-2000.0,0.00017099,2]
[404561127,1770292242631,-500.0,0.00017099,2]
[404561129,1770292242642,-2000.0,0.00017099,2]
[404561131,1770292242652,-500.0,0.00017099,2]
[404561133,1770292242661,-494.97768813,0.00017099,2]
[404561135,1770292242678,-277.35679052,0.00017099,2]
[404561137,1770292242688,-1428.38747117,0.00017099,2]
[404561139,1770292242697,-578.20924308,0.00017099,2]
[404561141,1770292242706,-250.0,0.00017099,2]
[404561143,1770292242716,-250.0,0.00017099,2]
[404561145,1770292242725,-250.0,0.00017099,2]
[404561147,1770292242736,-199.92628631,0.00017099,2]
[404561149,1770292242746,-209.40437684,0.00017099,2]
[404561151,1770292242756,-209.40437684,0.00017099,2]
[404561153,1770292242765,-721.12765535,0.00017099,2]
[404561155,1770292242775,-743.50770149,0.00017099,2]
[404561157,1770292242786,-500.0,0.00017099,2]
[404561159,1770292242795,-512.54322178,0.00017099,2]
[404561161,1770292242805,-431.0,0.00017117,2]
[404561163,1770292242815,-200.0,0.00017124,2]
[404561165,1770292242824,-200.0,0.00017124,2]
[404561167,1770292242835,-217.15233878,0.00017154,2]